Cogmind - Beta 16.1 @@@ ROGUE MODE // 2026.04.08 @ 20:49:35 Player: Sharded of Serpulo Result: Self-destructed Performance ------------- Evolutions (1) 500 Regions Visited (3) 600 Robots Destroyed (34) 170 Value Destroyed (602) 602 Prototype IDs (1) 20 Alien Tech Used (0) 0 Bonus (0) 0 TOTAL SCORE: 1892 Bonus ------- None Cogmind --------- Core Integrity 291/400 Matter 151/300 Energy 160/160 System Corruption 0% Temperature Cool (7) Movement Flying (31) Location -9/Materials Parts ------- > --- POWER (1) -------- Light Nuclear Core > --- PROPULSION (4) --- Flight Unit Flight Unit Flight Unit Flight Unit > --- UTILITY (2) ------ Medium Storage Unit Signal Interpreter > --- WEAPON (2) ------- (None) > --- INVENTORY (10) --- Light Nuclear Core Light Nuclear Core Light Nuclear Core Flight Unit Propulsion Shielding Mining Claw Peak State ------------ > --- POWER ------------ Light Nuclear Core > --- PROPULSION ------- Flight Unit Flight Unit Flight Unit Flight Unit > --- UTILITY ---------- Medium Storage Unit Signal Interpreter > --- WEAPON ----------- Mini Grenade Launcher Mining Claw > --- INVENTORY -------- Light Nuclear Core Light Nuclear Core Light Nuclear Core Flight Unit Flight Unit Flight Unit Flight Unit Propulsion Shielding [Rating: 13] Favorites ----------- Power Light Ion Engine Engine Light Ion Engine Power Core Light Nuclear Core Propulsion Light Treads Treads Light Treads Flight Unit Flight Unit Utility Signal Interpreter Storage Medium Storage Unit Processor Signal Interpreter Weapon Assault Rifle Ballistic Gun Assault Rifle Launcher Mini Grenade Launcher Special Weapon Mining Laser Slashing Weapon Mining Claw Build | -11 -10 -10 -9 ------- Run | Yrd Mat Min Mat Slots Evolved 2 | . . . 2 Power . | . . . . Propulsion 2 | . . . 2 Utility . | . . . . Weapon . | . . . . Parts Attached 29 | 5 14 1 9 Power 5 | . 3 . 2 Engine 4 | . 3 . 1 Core 1 | . . . 1 Reactor . | . . . . Propulsion 10 | 2 1 . 7 Treads 3 | 2 1 . . Leg . | . . . . Wheel . | . . . . Hover . | . . . . Flight 7 | . . . 7 Utility 5 | 1 4 . . Device . | . . . . Storage 3 | 1 2 . . Processor 2 | . 2 . . Hackware . | . . . . Protection . | . . . . Artifact . | . . . . Weapon 9 | 2 6 1 . Energy Gun . | . . . . Energy Cannon . | . . . . Ballistic Gun 5 | 2 2 1 . Ballistic Cannon . | . . . . Launcher 2 | . 2 . . Special Weapon 1 | . 1 . . Impact Weapon . | . . . . Slashing Weapon 1 | . 1 . . Piercing Weapon . | . . . . Special Melee Weapon . | . . . . Unidentified Prototypes 1 | . . . 1 Parts Lost 4 | . . . 4 Power . | . . . . Propulsion 3 | . . . 3 Utility . | . . . . Weapon 1 | . . . 1 Highest Loss Streak 4 | . . . 4 To Critical Strikes . | . . . . Average Backups 9 | 3 9 11 9 Power . | 1 . . 2 Propulsion 5 | 1 4 7 4 Utility . | . . 1 . Weapon 3 | . 3 2 1 Tool/Special . | . . . . Unused Backups 11 | . 5 1 5 Power 3 | . . . 3 Propulsion 5 | . 3 1 1 Utility 1 | . . . 1 Weapon 2 | . 2 . . Tool/Special . | . . . . Average Slot Usage (%) 97 | . 98 100 81 Engine 12 | . 13 14 3 Treads 25 | . 28 28 4 Flight 4 | . . . 34 Storage 13 | . 14 14 11 Processor 13 | . 13 14 11 Ballistic Gun 23 | . 26 28 5 Slashing Weapon 1 | . 1 . 1 Peak Build Rating 13 | 5 9 8 13 Average Rating 7 | 4 7 8 10 On Entrance 5 | . 5 8 8 Avg Prop Armor Cover (%) . | . . . . Naked Turns . | . . . . Heaviest Build 29 | 9 29 29 29 Greatest Support 40 | 40 40 40 40 Greatest Overweight (x) . | . . . . Average Overweight (x) . | . . . . Largest Inventory Capacity 15 | 8 15 15 15 Average Capacity 11 | 7 10 15 10 Most Carried 11 | 6 11 11 11 Average Carried 9 | 4 9 10 8 Final Capacity 15 | 8 15 15 10 Final Carried 11 | 6 11 11 6 Class Distribution -------------------- 92% | Mutant 7% | Scavenger-Sprinter Dominant Class ---------------- Mutant | -10/Materials Mutant | -10/Mines Scavenger-Sprinter | -9/Materials Resources | -11 -10 -10 -9 ----------- Run | Yrd Mat Min Mat Matter Collected 999 | 286 498 76 139 Remotely . | . . . . Salvage Created 895 | 135 526 38 196 Parts 80 | 11 40 5 24 Haulers Intercepted 4 | . 2 . 2 Recyclers Shooed . | . . . . Parts Field Recycled . | . . . . Retrieved Matter . | . . . . Parts Self-Destructed . | . . . . Prevented . | . . . . Parts Restored . | . . . . Kills | -11 -10 -10 -9 ------- Run | Yrd Mat Min Mat Combat Hostiles Destroyed 19 | . 10 3 6 Guns 11 | . 8 3 . AOE 8 | . 2 . 6 Classes Destroyed 8 | 2 6 . . Builder 2 | . 1 . 1 Tunneler 4 | 3 1 . . Hauler 4 | . 2 . 2 Recycler 1 | 1 . . . Operator 3 | . 2 . 1 Watcher 1 | . 1 . . Swarmer 9 | . 3 3 3 Grunt 10 | . 7 . 3 Best Kill Streak 9 | 3 4 3 9 Combat Bots Only 6 | . 3 3 6 Max Kills in Single Turn 3 | 1 3 2 2 Gunslinging . | . . . . Exploded 2 | . 2 . 2 Melee . | . . . . Uniques/NPCs Destroyed . | . . . . Combat | -11 -10 -10 -9 -------- Run | Yrd Mat Min Mat Hostile Shots Fired 88 | . 46 13 29 Missed 21 | . 11 3 7 Hits 67 | . 35 10 22 Projectile 67 | . 35 10 22 Critical Strikes 4 | . 3 . 1 Damage Taken 808 | . 401 83 324 Core 210 | . 70 31 109 Absorbed by Shields . | . . . . Core Remaining (%) 79 | 100 . 59 . Volleys Fired 76 | 6 55 4 11 Largest 2 | 2 2 2 1 Hottest 100 | 40 100 40 30 Shots Fired 141 | 12 109 9 11 Gun 127 | 12 106 9 . Cannon . | . . . . Launcher 13 | . 2 . 11 Special 1 | . 1 . . Kinetic 127 | 12 106 9 . Thermal 1 | . 1 . . Explosive 13 | . 2 . 11 Electromagnetic . | . . . . Robot Hit Streak 12 | 5 12 2 4 Robot Miss Streak 6 | 3 6 3 4 Penetration Max . | . . . . Secondary Targets 2 | . 2 . . Max Gunslinging Chain 1 | . 1 . . Shots Hit Robots 78 | 6 62 3 7 Core Hits 45 | 5 25 3 12 Critical Kills 1 | . 1 . . Critical Parts Destroyed . | . . . . Critical Strikes 1 | . 1 . . Destroy 1 | . 1 . . Melee Attacks 12 | . 6 . 6 Impact . | . . . . Slashing 12 | . 6 . 6 Piercing . | . . . . Sneak Attacks 2 | . 1 . 1 Combat Hostiles . | . . . . Follow-up Attacks . | . . . . Damage Inflicted 1872 | 78 1027 50 717 Guns 970 | 78 842 50 . Cannons . | . . . . Explosions 786 | . 141 . 645 Melee 116 | . 44 . 72 Ramming . | . . . . Kinetic 970 | 78 842 50 . Thermal . | . . . . Explosive 786 | . 141 . 645 Electromagnetic . | . . . . Impact . | . . . . Slashing 116 | . 44 . 72 Piercing . | . . . . Highest Corruption 2 | . 2 2 . Average Corruption 2 | . 2 2 . Corruption Purged . | . . . . Corruption Blocked . | . . . . Effects 8 | . 1 7 . Message Errors 3 | . . 3 . Matter Fused 1 | . . 1 . Energy Discharges 2 | . 1 1 . Data Loss (minor) 1 | . . 1 . Misfires 1 | . . 1 . Overload Shots . | . . . . Overflow Damage 21 | . 18 . 3 Projectiles . | . . . . Explosions 21 | . 18 . 3 Melee . | . . . . Knockbacks . | . . . . Impact . | . . . . Kinetic . | . . . . Secondary . | . . . . Self-Inflicted Damage 40 | . . . 40 Shots 2 | . . . 2 Rammed . | . . . . Targets Rammed . | . . . . Kicked . | . . . . Crushed . | . . . . Highest Temperature 27 | . 21 . 27 Average Temperature 9 | . 10 . 9 Received Heat Transfer 345 | . 237 . 108 Siege Activations . | . . . . Martial Activations . | . . . . Shielding Activations . | . . . . Robots Disrupted . | . . . . Combat Hostiles . | . . . . Robots Corrupted . | . . . . Combat Hostiles . | . . . . Parts Fried . | . . . . Impact Corruptions . | . . . . Robots Melted . | . . . . Combat Hostiles . | . . . . Parts Melted . | . . . . Heat Transferred . | . . . . Parts Sabotaged . | . . . . Parts Stolen . | . . . . Parts Stripped . | . . . . Power Chain Reactions . | . . . . Alert | -11 -10 -10 -9 ------- Run | Yrd Mat Min Mat Maximum Alert Level 1 | . . . 1 Low Security (%) 98 | 100 100 100 86 Level 1 1 | . . . 13 Level 2 . | . . . . Level 3 . | . . . . Level 4 . | . . . . Level 5 . | . . . . High Security . | . . . . Max Security . | . . . . Peak Influence 227 | 10 104 70 227 Initial 24 | . . . 24 Average 22 | 1 22 4 71 Influence Increases 733 | 20 330 70 313 Destroy 0b10 Robot/C 380 | . 200 60 120 Destroy 0b10 Robot/NC 75 | 20 35 . 20 Destroy Leader 80 | . 56 10 14 Disable Machine 45 | . 15 . 30 Destroy Structure 78 | . 24 . 54 Partial Spotted 45 | . . . 45 Lose Combat Pursuer 30 | . . . 30 Influence Decreases 547 | 20 330 8 189 Entered New Map 38 | . . . 38 Time Decay 469 | 20 330 8 111 Lost Part 40 | . . . 40 Squads Dispatched 2 | . 2 . . Investigation . | . . . . Extermination . | . . . . Reinforcement 2 | . 2 . . Assault . | . . . . Garrison . | . . . . Intercept . | . . . . Searches Triggered . | . . . . Construction Impeded . | . . . . Haulers Reinforced . | . . . . Active Scanning Responses . | . . . . Cargo Convoy Interrupts . | . . . . Stealth | -11 -10 -10 -9 --------- Run | Yrd Mat Min Mat Distress Signals 4 | . 1 . 3 Communications Jammed . | . . . . Distress Signals . | . . . . Times Spotted 39 | . 23 3 13 Peak Tracking Total 4 | . 4 3 4 Tactical Retreats 2 | . . . 2 Traps | -11 -10 -10 -9 ------- Run | Yrd Mat Min Mat Traps Triggered 2 | . 2 . . Indirectly . | . . . . Trap Hack Attempts . | . . . . Triggered . | . . . . Disarmed . | . . . . Reprogrammed . | . . . . Reused . | . . . . Traps Extracted . | . . . . Installed . | . . . . Triggered . | . . . . Machines | -11 -10 -10 -9 ---------- Run | Yrd Mat Min Mat Machines Disabled 3 | . 1 . 2 Max in Single Turn 2 | . 1 . 2 Machines Repaired . | . . . . Machines Dismantled . | . . . . Machines Sabotaged . | . . . . Overloaded Fab Kills . | . . . . Hacking | -11 -10 -10 -9 --------- Run | Yrd Mat Min Mat Machines Accessed 1 | . . . 1 Terminals 1 | . . . 1 Fabricators . | . . . . Repair Stations . | . . . . Recycling Units . | . . . . Scanalyzers . | . . . . Garrison Access . | . . . . Total Hacks 2 | . . . 2 Successful . | . . . . Failed 2 | . . . 2 Catastrophic 1 | . . . 1 Database Lockouts . | . . . . Manual 2 | . . . 2 Terminals 2 | . . . 2 Fabricators . | . . . . Repair Stations . | . . . . Recycling Units . | . . . . Scanalyzers . | . . . . Garrison Access . | . . . . Terminal Hacks . | . . . . Fabricator Hacks . | . . . . Repair Station Hacks . | . . . . Recycling Unit Hacks . | . . . . Scanalyzer . | . . . . Garrison Access Hacks . | . . . . Unauthorized Hacks . | . . . . Terminals . | . . . . Fabricators . | . . . . Repair Stations . | . . . . Recycling Units . | . . . . Scanalyzers . | . . . . Garrison Access . | . . . . Data Cores Recovered 1 | . . . 1 Used . | . . . . Hacking Detections 1 | . . . 1 Full Trace Events . | . . . . Feedback Events . | . . . . Feedback Blocked . | . . . . Robot Schematics Acquired . | . . . . Robots Built . | . . . . Authchips . | . . . . Time . | . . . . Total Robot Build Rating . | . . . . Part Schematics Acquired . | . . . . Parts Built . | . . . . Authchips . | . . . . Time . | . . . . Total Part Build Rating . | . . . . Part Studies Acquired . | . . . . Parts Repaired . | . . . . Time . | . . . . Parts Recycled . | . . . . Recycled Matter . | . . . . Retrieved Matter . | . . . . Retrieved Components . | . . . . Parts Scanalyzed . | . . . . Part Schematics Acquired . | . . . . Parts Damaged . | . . . . Bothacking | -11 -10 -10 -9 ------------ Run | Yrd Mat Min Mat Used RIF Installer . | . . . . Robots Hacked . | . . . . Non-combat . | . . . . Combat . | . . . . Robot Hacks Applied . | . . . . Relay Couplers Released . | . . . . Fabnet Peak Effective % . | . . . . Robots Rewired . | . . . . Allies Hacked . | . . . . Hacks Repelled . | . . . . Allies | -11 -10 -10 -9 -------- Run | Yrd Mat Min Mat Total Allies . | . . . . Largest Group . | . . . . Highest-Rated Group . | . . . . Highest-Rated Ally . | . . . . Total Orders . | . . . . Ally Attacks . | . . . . Total Damage . | . . . . Kills . | . . . . Allies Corrupted . | . . . . Allies Melted . | . . . . Intel | -11 -10 -10 -9 ------- Run | Yrd Mat Min Mat Active Infowar (turns) . | . . . . Robot Analysis Total . | . . . . Derelict Logs Recovered 1 | . . 1 . Drone Launches . | . . . . Drone Recoveries . | . . . . Exploration | -11 -10 -10 -9 ------------- Run | Yrd Mat Min Mat Turns Passed 2258 | 170 1429 418 241 Spaces Moved 1493 | 89 726 251 427 Core 4 | 4 . . . Treads 1085 | 85 726 251 23 Legs . | . . . . Wheels . | . . . . Hover . | . . . . Flight 404 | . . . 404 Fastest Speed 31 | 50 160 160 31 Average Speed 124 | 155 160 160 37 Slowest Speed 160 | 160 160 160 160 Overloaded Moves . | . . . . Propulsion Burnouts . | . . . . Robots Hopped 2 | . . . 2 Potential Cave-ins . | . . . . Cave-ins Triggered . | . . . . Exploration Rate (%) 40 | 5 64 54 40 Regions Visited 3 Branch Regions 1 Pre-discovered Areas 1 | . . 1 . Known Exits Taken 2 | . 1 1 . Unknown Exits Taken 1 | 1 . . . Scrap Searched 1 | . . 1 . Spaces Dug 4 | . 2 . 2 Terrain Destroyed 79 | . 26 . 53 Melee 4 | . 2 . 2 Projectile . | . . . . AOE 75 | . 24 . 51 Terrain Rammed . | . . . . Walls Destroyed . | . . . . Machines Disabled . | . . . . Actions | -11 -10 -10 -9 --------- Run | Yrd Mat Min Mat Total 1723 | 107 871 260 485 Wait 35 | 1 27 . 7 Move 1486 | 88 725 250 423 Hop 2 | . . . 2 Pick Up 33 | 7 20 2 4 Fast Attach 13 | 4 6 . 3 Attach 17 | 1 1 1 14 Detach 6 | . . . 6 Swap 15 | . 13 1 1 Drop 28 | . 18 2 8 Fire 76 | 6 55 4 11 Melee 12 | . 6 . 6 Ram . | . . . . Kick . | . . . . Crush . | . . . . Escape Stasis . | . . . . Rewire . | . . . . Trap . | . . . . Miscellaneous . | . . . . Route ------- -11/Scrapyard -10/Materials (discovered 4 exits: *Mat x3 / *Min) -10/Mines -9/Materials (discovered 2 exits: [*Mat] / *Min) History --------- Turn | Location | Event 4 | -11/Scrapyard | Discovered new exit (range 16) 171 | -11/Scrapyard | Entered Materials 320 | -10/Materials | Build established: Mutant 355 | -10/Materials | Discovered new exit (range 10) 526 | -10/Materials | Identified exit to Materials 994 | -10/Materials | Discovered exit to Materials (range 8) 1154 | -10/Materials | Discovered exit to Materials (range 13) 1224 | -10/Materials | Discovered new exit (range 10) 1237 | -10/Materials | Identified exit to Mines 1600 | -10/Materials | Entered Mines 1976 | -10/Mines | Discovered exit to Materials (range 7) 2018 | -10/Mines | Entered Materials 2018 | -9/Materials | Evolved 2 slots: Propulsion x2 2240 | -9/Materials | Discovered new exit (range 16) 2240 | -9/Materials | Discovered new exit (range 10) 2244 | -9/Materials | Identified exit to Mines 2259 | -9/Materials | Self-destructed Last Messages --------------- Acquired 15 matter. Dropped Lgt. Nuclear Core. U-05 Engineer lays Concrete. Acquired Prototype Engine. Identified Cld. Ion Engine. U-05 Engineer lays Concrete. Dropped Cld. Ion Engine. U-05 Engineer lays Concrete. Acquired Lgt. Nuclear Core. U-05 Engineer lays Concrete. K-01 Serf collects debris. EXIT=FOUND O-16 Technician destroyed. Critical hit (Burn: +37). Acquired data core, extracted dynamic key. Decrypted 3 local trap positions from data. EXIT=IDENTIFIED: MINES Flight Unit destroyed. Mni. Grenade Launcher destroyed. The unstable cave ceiling collapses. Map ----- +----------------------------------------------------+ | #??????????????????????????????? | | #??????????????????????????????? | | #??????????????????????????????? | | #??????????????????????????????? | | #??????????????????????????????? | | #??##??????????????????????????? | | #??!##?????????????????????????? | | #? !#???????????????????Y #??? | | ?????????????? #?# ##??? | | ?????????????# #?# ??? | | ?????????????# #?## Y ##?? | | ?????????????# #?? ??? | | ?????????????# # """"" ??? | | ?????????????? + ""T"" #?? | | ?????????????????????# #?? | | ?????????????????????###########?? | | ?????????????????????????????????? | | ?????????????????????????????????? | | ?????????????????????????????????? | | ?????????????????????????????????? | | ?????????????????????????????????? | | ?????????????????????????????????? | | ?????????????????????????????????? | | ?????????????????????????????????? | | ?????????????????????????????????? | | ?????????????????????????????????? | +----------------------------------------------------+ Best States ------------- Heat Dissipation 28 Energy Generation 14 Energy Capacity 250 Matter Stores 300 Matter Capacity 300 Sight Range 16 Terrain Scan Density 10 Evasion (%) 63 Targeting Accuracy 5 Recoil Reduction 2 Item Schematics ----------------- None Robot Schematics ------------------ None Fabricated ------------ Nothing Repaired ---------- Nothing Studied --------- None Alien Tech Used ----------------- None Achievements -------------- None Challenges ------------ None Game ------ Seed SpreadEtherialCleaver Manual? 0 Play Time 00:16:41 Cumulative 55.5 hours Start 2026.04.08 @ 20:34:42 End 2026.04.08 @ 20:49:35 Sessions 1 Manual Loads 0 Difficulty Rogue Special Mode None Game No. 55 Rogue 1 Adventurer 54 Explorer 0 Win Type - Total 1 Types 1/0/0/0/0/0/0/0/0/0 Lore% 20 Gallery% 38 Achievement% 35 Wizard Run 0 Options --------- Layout 1 ASCII 0 Keyboard 0 Movement Mouse Keybinds 1 Fullscreen 1 Font 32/Tamsyn Map View 50x35 Zoom Use 0% Tactical HUD 0 Map Filters NONE Filters NONE Steam 1 RUN: c7aadff7-8f40-43c3-bb5c-703f356da15f